bitfinex-derivatives/quotes_SOLF0:USTF0_20251002
["timestamp","ask_amount","ask_price","bid_price","bid_amount"]
[1759423798617,3.9539,227.48,227.42,7.26313622]
[1759423798814,3.02732927,227.47,227.42,7.26313622]
[1759423799019,3.02732927,227.46,227.42,7.26313622]
[1759423799208,3.02732927,227.45,227.43,7.23]
[1759423799408,3.9539,227.48,227.42,7.26313622]
[1759423799609,3.02693619,227.47,227.42,0.03313622]
[1759423799814,3.02693619,227.46,227.43,7.23]
[1759423800010,3.02693619,227.45,227.42,0.03313622]
[1759423800215,3.02712717,227.44,227.42,0.03313622]
[1759423800415,3.9541,227.47,227.42,0.03313622]
[1759423800610,3.02702781,227.46,227.42,0.03313622]
[1759423800916,3.02702781,227.52,227.43,7.23]
[1759423801219,3.02702781,227.52,227.42,2.91030186]
[1759423801220,3.02702781,227.51,227.47,3.9539]
[1759423801419,3.02702781,227.5,227.48,7.29]
[1759423801612,3.02702781,227.49,227.43,7.29]
[1759423801812,3.02702781,227.48,227.44,3.9544]
[1759423802010,3.02702781,227.5,227.44,7.29]
[1759423802215,2.87716564,227.57,227.47,0.02924531]
[1759423802216,3.02702781,227.49,227.47,0.02924531]
[1759423802415,3.02702781,227.56,227.47,7.31924531]
[1759423802614,3.02702781,227.55,227.47,7.31924531]
[1759423802813,3.02702781,227.54,227.47,7.31924531]
[1759423803018,3.02702781,227.53,227.47,7.31924531]
[1759423803320,3.02702781,227.55,227.47,7.31924531]
[1759423803516,3.02702781,227.54,227.47,7.31924531]
[1759423803721,13.13269108,227.57,227.48,7.29]
[1759423803922,3.02702781,227.56,227.48,7.29]
[1759423804117,3.02702781,227.55,227.48,7.29]
[1759423804321,3.02702781,227.6,227.48,7.29]
[1759423804522,3.02702781,227.59,227.48,7.29]
[1759423804721,3.02702781,227.58,227.51,7.29]
[1759423804914,3.02702781,227.57,227.51,11.2431]
[1759423805118,3.02702781,227.56,227.5,0.02996933]
[1759423805319,3.02702781,227.6,227.5,0.02996933]
[1759423805619,3.02702781,227.59,227.5,0.02996933]
[1759423805821,3.9523,227.57,227.5,3.98326933]
[1759423806023,3.02702781,227.56,227.5,3.98326933]
[1759423806222,3.02702781,227.56,227.5,0.02996933]
[1759423806422,3.02702781,227.59,227.5,0.02996933]
[1759423806624,3.02702781,227.58,227.54,7.29]
[1759423806824,3.02702781,227.58,227.5,7.31996933]
[1759423807623,3.02702781,227.58,227.51,3.9533]
[1759423808429,3.02702781,227.59,227.51,3.9533]
[1759423810023,3.02702781,227.59,227.5,7.31996933]
[1759423810228,3.9521,227.58,227.5,7.31996933]
[1759423810422,3.02702781,227.59,227.5,7.31996933]
[1759423811130,2.87716564,227.67,227.51,7.29]
[1759423811325,113.57432456,227.66,227.54,7.29]
[1759423811527,3.01432456,227.65,227.54,7.29]
[1759423811727,113.57432456,227.66,227.57,11.2422]
[1759423811924,3.01432456,227.65,227.57,7.29]
[1759423812323,3.01432456,227.65,227.57,7.32004016]
[1759423813726,3.951,227.64,227.57,7.32004016]
[1759423816224,3.01432456,227.65,227.57,7.32004016]
[1759423816427,123.40569731,227.66,227.57,7.32004016]
[1759423816725,3.0099933,227.65,227.57,7.32004016]
[1759423816931,3.9512,227.64,227.57,7.32004016]
[1759423817620,110.5,227.65,227.57,7.32004016]
[1759423818631,114.451,227.65,227.57,11.27214016]
[1759423819236,3.951,227.65,227.58,3.9519]
[1759423820737,110.5,227.66,227.59,11.2417]
[1759423820934,13.11564789,227.66,227.59,11.2417]
[1759423821133,110.48,227.66,227.59,11.2417]
[1759423821833,1.83811946,227.67,227.59,11.2417]
[1759423822035,110.48,227.66,227.59,11.2417]
[1759423822238,110.48,227.66,227.59,7.29]
[1759423822535,110.48,227.66,227.57,5.82035962]
[1759423822536,1.83811946,227.64,227.57,0.03004016]
[1759423823639,5.78931946,227.64,227.57,3.98224016]
[1759423824232,1.83811946,227.64,227.57,11.77224016]
[1759423824436,112.29811946,227.64,227.57,11.77224016]
[1759423825132,110.46,227.64,227.57,7.82004016]
[1759423825333,319.98,227.68,227.59,7.79]
[1759423825534,319.98,227.68,227.62,7.79]
[1759423825934,319.98,227.68,227.64,3.951]
[1759423826135,110.44,227.69,227.65,7.79]
[1759423826842,110.44,227.71,227.65,3.9792933]
[1759423828139,110.44,227.71,227.65,0.0285933]
[1759423828337,13.19323488,227.73,227.66,7.79]
[1759423828533,110.42,227.74,227.66,7.79]
[1759423829343,110.42,227.74,227.67,3.9504]
[1759423829542,1.83811946,227.75,227.67,3.9504]
[1759423829735,110.42,227.74,227.66,7.79]
[1759423830343,110.4,227.74,227.66,7.79]
[1759423830739,110.4,227.74,227.67,3.9504]
[1759423831242,3.9495,227.73,227.67,3.9504]
[1759423831442,17.29805381,227.73,227.66,7.79]
[1759423831642,3.9495,227.73,227.66,7.79]
[1759423832844,110.4,227.74,227.66,7.79]
[1759423833244,112.21811946,227.75,227.66,7.79]
[1759423833445,112.21811946,227.75,227.69,3.9501]
[1759423833648,110.38,227.75,227.69,11.6101]
[1759423833944,110.38,227.75,227.69,7.66]
[1759423834142,1.83811946,227.78,227.72,3.9495]
[1759423834445,110.36,227.79,227.72,3.9495]
[1759423835248,110.36,227.79,227.7,0.03246497]
[1759423836650,110.36,227.79,227.7,3.98226497]
[1759423837346,110.36,227.79,227.71,3.9497]
[1759423837552,110.36,227.79,227.71,7.66]
[1759423837848,319.76,227.81,227.75,3.9491]
[1759423838053,443.11096035,227.81,227.75,3.9491]
[1759423838950,448.89717981,227.81,227.73,9.49811946]
[1759423839153,448.89717981,227.81,227.76,0.02975607]
[1759423839347,444.94907981,227.81,227.76,0.02975607]
[1759423839753,444.94907981,227.81,227.71,3.9498]
[1759423840453,3.9484,227.8,227.74,0.02838661]
[1759423841550,444.94907981,227.81,227.74,0.02838661]
[1759423842244,3.9483,227.8,227.74,0.02838661]
[1759423843455,444.94907981,227.81,227.74,0.02838661]
[1759423844659,3.9483,227.8,227.74,0.02838661]
[1759423845549,444.94907981,227.81,227.74,0.02838661]
[1759423845749,110.28,227.8,227.74,0.02838661]
[1759423846557,114.2283,227.8,227.74,0.02838661]
[1759423846955,110.28,227.8,227.74,0.02838661]
[1759423847157,110.28,227.8,227.74,3.97758661]
[1759423847950,110.28,227.8,227.74,0.02838661]
[1759423848156,110.28,227.8,227.75,11.609]
[1759423848651,112.11811946,227.8,227.74,0.02838661]
[1759423849362,110.28,227.8,227.74,0.02838661]
[1759423849659,112.11811946,227.8,227.74,0.02838661]
[1759423850848,116.06651946,227.8,227.74,0.02838661]
[1759423851453,114.2284,227.8,227.74,0.02838661]
[1759423851658,116.06651946,227.8,227.74,0.02838661]
[1759423854061,112.11811946,227.8,227.74,3.97748661]
[1759423854465,110.28,227.8,227.74,0.02838661]
[1759423854663,1.83811946,227.84,227.77,11.6086]
[1759423854865,98.04,227.83,227.77,11.6086]
[1759423855056,3.00608665,227.82,227.77,3.9486]
[1759423855257,3.00608665,227.82,227.78,7.66]
[1759423855959,3.00608665,227.82,227.78,7.68989957]
[1759423856753,4.88908806,227.91,227.79,7.66]
[1759423856958,1.83811946,227.88,227.79,7.66]
[1759423857260,3.00715814,227.87,227.79,7.66]
[1759423857462,113.18715814,227.86,227.8,3.9481]
[1759423857662,3.00715814,227.85,227.8,7.66]
[1759423857860,3.00715814,227.85,227.78,1.83811946]
[1759423858064,1.83811946,227.83,227.81,0.02876482]
[1759423858365,112.01811946,227.82,227.81,0.02876482]
[1759423858554,115.0252776,227.82,227.81,0.02876482]
[1759423858758,112.01811946,227.82,227.81,0.02876482]
[1759423859069,115.46562277,227.82,227.64,61.4599]
[1759423859265,1.83811946,227.76,227.64,61.4606]
[1759423859463,31.23811946,227.76,227.68,7.66]
[1759423860454,66.29238806,227.86,227.69,1.83811946]
[1759423860455,1.83811946,227.78,227.69,1.83811946]
[1759423860660,0.03097824,227.74,227.71,1.83811946]
[1759423861068,0.03097824,227.74,227.72,7.66]
[1759423861365,0.03097824,227.74,227.73,9.48811946]
[1759423862272,8.79539164,227.86,227.78,3.9485]
[1759423862472,15.38997218,227.85,227.77,9.48811946]
[1759423862677,3.00997218,227.84,227.77,9.48811946]
[1759423862980,4.84809164,227.84,227.75,1.83811946]
[1759423863374,114.98809164,227.84,227.75,1.83811946]
[1759423863680,3.00997218,227.83,227.76,3.9489]
[1759423863979,13.45643718,227.87,227.79,7.65]
[1759423864274,3.01149571,227.86,227.82,3.9479]
[1759423864469,3.01149571,227.87,227.82,7.65]
[1759423864672,3.01149571,227.9,227.82,7.65]
[1759423864870,3.01149571,227.91,227.84,1.83811946]
[1759423865073,113.15149571,227.92,227.85,7.65]
[1759423865382,3.01149571,227.91,227.85,7.65]
[1759423865575,15.907581,227.91,227.84,1.83811946]
[1759423865782,4.84961517,227.9,227.85,0.03308763]
[1759423865984,3.01149571,227.9,227.85,0.03308763]
[1759423866277,4.84961517,227.9,227.85,0.03308763]
[1759423866481,3.01149571,227.9,227.82,7.65]
[1759423867176,3.01149571,227.9,227.85,0.03123968]
[1759423867680,3.9468,227.89,227.85,0.03123968]
[1759423868183,3.01149571,227.9,227.85,0.03123968]
[1759423868477,3.01149571,227.9,227.86,7.65]
[1759423868875,3.01149571,227.91,227.85,7.68123968]
[1759423869175,110.1,227.92,227.85,7.68123968]
[1759423869176,110.1,227.92,227.86,13.43521946]
[1759423869386,110.1,227.92,227.86,9.48811946]
[1759423869584,123.5610866,227.92,227.86,9.48811946]
[1759423870078,110.1,227.92,227.86,9.48811946]
[1759423870279,429.62,227.94,227.86,9.48811946]
[1759423870486,3.01204308,227.93,227.86,9.48811946]
[1759423870986,113.09204308,227.93,227.86,9.48811946]
[1759423871185,3.01204308,227.92,227.86,9.48811946]
[1759423871382,6.95824308,227.92,227.86,7.65]
[1759423872283,3.9466,227.9,227.85,0.03123968]
[1759423872485,3.9466,227.9,227.85,7.68123968]
[1759423872786,3.9466,227.9,227.86,7.65]
[1759423873183,3.9466,227.9,227.85,0.03123968]
[1759423874081,3.9466,227.9,227.85,7.68123968]
[1759423874278,4.85016254,227.91,227.85,7.68123968]
[1759423874483,114.0261,227.93,227.85,7.68123968]
[1759423874484,16.14824319,227.92,227.85,7.68123968]
[1759423874683,3.01204308,227.91,227.85,7.68123968]
[1759423874887,3.01204308,227.92,227.85,7.68123968]
[1759423875586,6.95834308,227.92,227.85,7.68123968]
[1759423875781,3.01204308,227.92,227.85,7.68123968]
[1759423875981,1.83811946,227.91,227.85,0.03123968]
[1759423876187,3.947,227.88,227.85,0.03123968]
[1759423878088,1.83811946,227.9,227.85,0.03123968]
[1759423878288,110.04,227.89,227.85,0.03123968]
[1759423878779,113.9869,227.89,227.85,0.03123968]
[1759423880588,12.98889855,227.92,227.86,7.65]
[1759423880791,113.9661,227.93,227.86,7.65]
[1759423880989,3.00572649,227.92,227.86,7.65]
[1759423881592,3.00572649,227.92,227.86,11.5971]
[1759423882290,127.38053425,227.93,227.86,11.5971]
[1759423883096,110.0,227.92,227.86,11.5971]
[1759423886602,110.0,227.92,227.85,0.03123968]
[1759423887396,3.9468,227.89,227.85,0.03123968]
[1759423887803,332.64847275,227.94,227.85,0.03123968]
[1759423888004,112.98448969,227.93,227.85,0.03123968]
[1759423888193,3.00448969,227.92,227.85,0.03123968]
[1759423888398,109.96,227.91,227.85,0.03123968]
[1759423889394,3.00520487,227.9,227.85,0.03123968]
[1759423890104,3.947,227.88,227.85,0.03123968]
[1759423890293,109.96,227.87,227.85,0.03123968]
[1759423890498,113.9072,227.87,227.85,0.03123968]
[1759423891500,6.81297054,227.9,227.85,0.03123968]
[1759423891704,109.94,227.89,227.85,0.03123968]
[1759423892705,3.947,227.88,227.85,0.03123968]
[1759423893406,6.95411053,227.88,227.85,0.03123968]
[1759423893805,3.9472,227.86,227.85,0.03123968]
[1759423894598,109.94,227.86,227.85,0.03123968]
[1759423894796,3.9469,227.88,227.85,0.03123968]
[1759423895001,3.9465,227.9,227.85,7.24123968]
[1759423895305,3.00761653,227.93,227.85,0.03123968]
[1759423895503,109.92,227.92,227.85,7.24123968]
[1759423898109,332.64847275,227.94,227.85,7.24123968]
[1759423898315,112.92888258,227.93,227.85,7.24123968]
[1759423898515,109.92,227.93,227.85,7.24123968]
[1759423898712,3.00958951,227.92,227.85,7.24123968]
[1759423902119,4.88908806,228.02,227.92,7.21]
[1759423902313,112.89140281,228.01,227.92,7.21]
[1759423902507,3.01140281,228.0,227.92,7.21]
[1759423902713,112.89140281,227.99,227.92,7.21]
[1759423902916,3.01140281,227.98,227.92,7.21]
[1759423903117,3.01140281,227.97,227.92,7.21]
[1759423903314,3.01140281,227.96,227.92,7.21]
[1759423903514,3.01140281,227.98,227.93,0.03377676]
[1759423903719,3.01140281,227.97,227.93,0.03377676]
[1759423903914,3.01140281,227.96,227.93,0.03377676]
[1759423904115,3.01140281,227.98,227.93,0.03377676]
[1759423904312,3.01140281,227.97,227.93,3.97977676]
[1759423904519,3.01140281,227.98,227.93,7.24377676]
[1759423904819,3.01140281,227.97,227.93,7.24377676]
[1759423905016,109.88,227.99,227.94,7.21]
[1759423905017,3.01140281,227.98,227.94,7.21]
[1759423905318,3.01140281,227.98,227.96,7.21]
[1759423905516,3.01140281,228.0,227.95,2.86627054]
[1759423905720,3.01140281,227.99,227.95,2.86627054]
[1759423905917,3.01140281,228.0,227.95,10.07627054]
[1759423906117,3.01140281,227.99,227.95,10.07627054]
[1759423906318,3.01140281,228.0,227.96,7.21]
[1759423906514,3.01140281,227.99,227.96,7.21]
[1759423906821,109.86,228.01,227.96,3.9453]
[1759423906822,3.01140281,228.0,227.96,3.9453]
[1759423907009,3.01140281,227.99,227.96,3.9453]
[1759423907324,3.01140281,228.0,227.97,7.21]
[1759423907620,3.01140281,227.99,227.97,7.21]
[1759423907813,3.01140281,228.0,227.97,7.21]
[1759423908215,3.01140281,228.0,227.95,2.86627054]
[1759423908417,3.01140281,228.01,227.95,2.86627054]
[1759423908616,3.01140281,228.0,227.95,2.86627054]
[1759423908921,3.01140281,228.01,227.95,10.07627054]
[1759423909121,3.01140281,228.0,227.96,7.21]
[1759423909321,3.01140281,228.01,227.95,10.07627054]
[1759423909621,3.01140281,228.0,227.98,3.945]
[1759423909823,3.01140281,228.01,227.98,11.155]
[1759423910018,3.01140281,228.0,227.98,11.155]
[1759423910218,109.82,228.03,227.98,11.155]
[1759423910219,3.01140281,228.02,227.98,11.155]
[1759423910419,3.01140281,228.01,227.98,11.155]
[1759423910622,3.01140281,228.02,227.98,11.155]
[1759423910815,3.01140281,228.01,227.98,11.155]
[1759423911116,3.01140281,228.01,227.98,7.24222814]
[1759423911317,3.01140281,228.01,227.98,0.03222814]
[1759423911712,3.9448,228.0,227.98,0.03222814]
[1759423911915,3.01140281,227.99,227.98,0.03222814]
[1759423912112,3.01140281,227.99,227.89,7.21]
[1759423912113,3.45140281,227.99,227.89,7.21]
[1759423912316,112.81140281,227.98,227.89,7.21]
[1759423912516,3.01140281,227.97,227.9,3.9465]
[1759423912717,3.01140281,227.96,227.89,7.21]
[1759423913016,3.01140281,227.97,227.89,7.21]
[1759423913219,3.01140281,227.96,227.84,10.07627054]
[1759423913420,3.01140281,227.95,227.84,10.07627054]
[1759423913620,109.8,227.94,227.85,7.21]
[1759423914023,3.00199847,227.93,227.85,7.21]
[1759423914523,3.00199847,227.92,227.82,0.16958]
[1759423914724,3.00199847,227.91,227.82,0.16958]
[1759423915025,6.94869847,227.9,227.82,4.11738]
[1759423915213,109.78,227.89,227.82,0.16958]
[1759423915413,109.78,227.88,227.82,0.16958]
[1759423915920,109.81010398,227.88,227.82,0.16958]
[1759423916127,3.00264722,227.87,227.82,0.16958]
[1759423916822,3.9472,227.86,227.82,0.16958]
[1759423917422,3.9476,227.84,227.82,0.16958]
[1759423918327,109.78,227.83,227.82,0.16958]
[1759423918527,0.03010398,227.88,227.82,0.16958]
[1759423918726,0.03010398,227.88,227.84,7.21]
[1759423919025,0.03010398,227.88,227.84,2.86627054]
[1759423919221,0.03010398,227.88,227.87,3.947]
[1759423919427,0.03010398,227.88,227.87,7.21]
[1759423919624,0.03010398,227.88,227.84,7.21]
[1759423919932,0.03010398,227.88,227.85,7.21]
[1759423920316,0.03010398,227.88,227.83,7.21]
[1759423920521,0.03010398,227.88,227.83,61.4094]
[1759423920826,0.03010398,227.88,227.84,2.86627054]
[1759423921026,0.03010398,227.88,227.85,7.21]
[1759423921223,0.03010398,227.88,227.87,11.157]
[1759423922128,3.9448,228.01,227.92,3.9461]
[1759423922328,112.76044662,228.0,227.92,3.9461]
[1759423922628,3.00044662,227.99,227.92,3.9461]
[1759423922826,3.00044662,227.98,227.92,3.9461]
[1759423923124,3.00044662,227.99,227.93,7.29]
[1759423923426,3.00044662,227.99,227.92,11.2361]
[1759423923627,109.76,227.98,227.93,3.9458]
[1759423923831,109.76,227.98,227.94,7.32124498]
[1759423924429,109.76,227.98,227.94,0.03124498]
[1759423924627,3.00019867,227.97,227.94,0.03124498]
[1759423925020,109.76,227.98,227.94,0.03124498]
[1759423925429,3.00007221,227.97,227.94,0.03124498]
[1759423925929,109.76,227.98,227.94,0.03124498]
[1759423926124,2.99998748,227.97,227.94,0.03124498]
[1759423926330,109.74,227.98,227.94,0.03124498]
[1759423927327,17.0288604,228.02,227.94,7.32124498]
[1759423927531,2.99960759,228.01,227.94,7.32124498]
[1759423927829,17.0288604,228.02,227.94,7.32124498]
[1759423928624,17.0288604,228.02,227.97,11.2353]
[1759423929030,17.0288604,228.02,227.98,7.29]
[1759423929233,4.0140684,228.02,227.98,7.29]
[1759423929425,4.0140684,228.02,227.99,11.235]
[1759423929825,4.0140684,228.02,227.99,7.29]
[1759423930329,4.0140684,228.02,227.96,3.9453]
[1759423930330,2.99711638,228.04,227.97,7.29]
[1759423931624,113.6639,228.05,227.97,7.29]
[1759423932430,2.99528545,228.04,227.97,7.29]
[1759423932629,3.9443,228.03,227.97,7.29]
[1759423933029,3.9443,228.03,227.99,0.0310692]
[1759423933526,2.99528545,228.04,227.99,0.0310692]
[1759423933733,64.6,228.04,228.0,7.29]
[1759423934124,3.9434,228.09,227.99,7.3210692]
[1759423934324,109.68,228.08,227.99,7.3210692]
[1759423934630,3.00591828,228.07,227.99,7.3210692]
[1759423935231,3.944,228.05,227.99,7.3210692]
[1759423936536,3.9443,228.03,227.99,0.0310692]
[1759423936731,3.00591828,228.04,227.99,0.0310692]
[1759423937133,3.00591828,228.05,227.99,0.0310692]
[1759423937334,109.66,228.04,227.99,0.0310692]
[1759423937534,109.66,228.04,227.99,7.3210692]
[1759423938836,109.66,228.04,227.99,0.0310692]
[1759423939234,17.19827811,228.05,227.99,0.0310692]
[1759423939434,3.9447,228.01,227.99,0.0310692]
[1759423939639,109.66,228.04,227.99,0.0310692]
[1759423940746,17.19807811,228.05,227.99,0.0310692]
[1759423940747,109.64,228.03,227.99,0.0310692]
[1759423941842,109.64,228.02,227.99,0.0310692]
[1759423942044,2.86627054,228.11,228.0,7.29]
[1759423942339,1.83165285,228.09,228.0,7.29]
[1759423942544,4.83858618,228.09,228.0,7.29]
[1759423943339,4.83858618,228.09,228.02,0.0281897]
[1759423943538,8.78198618,228.09,228.02,0.0281897]
[1759423943847,3.00693333,228.09,228.02,0.0281897]
[1759423944142,6.95033333,228.09,228.02,0.0281897]
[1759423944942,8.78198618,228.09,228.02,0.0281897]
[1759423946745,3.00693333,228.09,228.08,3.9434]
[1759423946943,1.83165285,228.19,228.08,7.18]
[1759423947140,14.72767773,228.19,228.08,9.01165285]
[1759423947344,1.83165285,228.19,228.08,9.01165285]
[1759423947548,1.83165285,228.16,228.08,7.18]
[1759423948148,8.86,228.21,228.08,7.18]
[1759423948347,1.83165285,228.16,228.1,0.03317663]
[1759423948739,12.98779046,228.19,228.1,0.03317663]
[1759423948945,62.16,228.18,228.1,0.03317663]
[1759423949147,63.99165285,228.18,228.1,0.03317663]
[1759423950041,62.16,228.18,228.1,0.03317663]
[1759423950242,1.83165285,228.11,227.95,7.18]
[1759423950444,1.83165285,228.06,227.97,7.18]
[1759423950950,97.82,228.1,227.97,7.18]
[1759423951151,3.9433,228.09,227.99,1.83165285]
[1759423951351,32.12,228.08,227.99,1.83165285]
[1759423951941,0.03157834,228.06,228.01,3.9446]
[1759423952141,0.03157834,228.06,228.02,7.11]
[1759423953252,0.03157834,228.06,228.01,3.9446]
[1759423953450,0.03157834,228.06,228.02,7.11]
[1759423954349,0.03157834,228.06,228.01,3.9446]
[1759423955151,0.03157834,228.06,228.02,7.11]
[1759423955655,0.03157834,228.06,228.01,3.9446]
[1759423956150,0.03157834,228.06,228.0,1.83165285]
[1759423956356,0.03157834,228.06,228.05,7.11]
[1759423958451,1.83165285,228.16,228.07,3.9435]
[1759423958857,2.98350883,228.17,228.07,3.9435]
[1759423959157,2.98350883,228.17,228.08,7.11]
[1759423959358,1.83165285,228.18,228.08,7.11]
[1759423959559,2.98339507,228.18,228.1,7.11]
[1759423959759,13.27626412,228.19,228.1,7.11]
[1759423959954,86.1,228.21,228.1,7.11]
[1759423959955,1.83165285,228.17,228.1,7.11]
[1759423960153,15.85227141,228.2,228.11,0.02880136]
[1759423960360,1.83165285,228.19,228.11,0.02880136]
[1759423961059,1.83165285,228.19,228.1,7.11]
[1759423961258,3.9417,228.18,228.1,7.11]
[1759423961460,2.98340138,228.21,228.06,7.11]
[1759423961461,1.83165285,228.16,228.06,7.11]
[1759423961660,61.3187,228.17,228.13,0.03148568]
[1759423961961,5.77405285,228.14,228.13,0.03148568]
[1759423962259,111.37165285,228.14,228.02,7.11]
[1759423962465,1.83165285,228.09,228.02,7.11]
[1759423963964,0.03258805,228.08,228.02,7.11]
[1759423965662,1.8642409,228.08,228.02,7.11]
[1759423966456,0.03258805,228.08,228.02,7.11]
[1759423966660,0.03258805,228.08,228.02,11.0544]
[1759423968064,0.03258805,228.08,228.04,7.11]
[1759423968769,0.03258805,228.08,228.0,1.83165285]
[1759423968958,0.03258805,228.08,228.01,7.11]
[1759423969165,0.03258805,228.08,228.04,7.11]
[1759423969365,1.8642409,228.08,228.0,7.11]
[1759423969565,1.83165285,228.06,228.0,7.11]
[1759423970060,0.03258805,228.08,228.0,7.11]
[1759423970462,0.03258805,228.08,228.01,3.9445]
[1759423971577,3.97618805,228.08,228.0,7.11]
[1759423971773,0.03258805,228.08,228.0,7.11]
[1759423972575,3.9438,228.07,228.0,7.11]
[1759423973373,0.03258805,228.08,228.0,7.11]
[1759423974064,3.97618805,228.08,228.0,7.11]
[1759423974468,1.83165285,228.07,228.0,7.11]
[1759423974971,3.9439,228.06,228.0,7.11]
[1759423975175,1.83165285,228.05,228.0,7.11]
[1759423975371,0.03258805,228.08,227.95,7.11]
[1759423975568,1.83165285,228.04,227.95,7.11]
[1759423976277,5.77585285,228.04,227.95,11.0555]
[1759423976575,0.03285724,228.02,227.95,7.11]
[1759423977672,0.03285724,228.02,227.97,7.11]
[1759423977876,0.03285724,228.02,227.96,11.0554]
[1759423979073,0.03285724,228.02,227.97,1.83165285]
[1759423979274,0.03285724,228.02,227.98,7.11]
[1759423979878,0.03285724,228.02,228.01,7.11]
[1759423981574,0.03285724,228.02,227.99,7.11]
[1759423981880,0.03285724,228.02,227.98,1.83165285]
[1759423982081,0.03285724,228.02,227.99,7.11]
[1759423982475,0.03285724,228.02,227.98,1.83165285]
[1759423982776,0.03285724,228.02,227.96,7.11]
[1759423983179,0.03285724,228.02,227.97,3.9452]
[1759423983380,0.03285724,228.02,227.96,7.11]
[1759423984577,0.03285724,228.02,227.99,3.945]
[1759423984776,0.03285724,228.02,228.0,7.11]
[1759423987485,0.03285724,228.02,227.98,7.11]
[1759423987784,0.03285724,228.02,227.99,7.11]
[1759423988085,0.03285724,228.02,227.98,3.945]
[1759423988785,0.03285724,228.02,227.99,7.11]
[1759423989079,0.03285724,228.02,227.98,3.945]
[1759423989288,0.03285724,228.02,227.99,7.11]
[1759423989489,0.03285724,228.02,227.97,7.11]
[1759423989784,1.86451009,228.02,227.96,7.11]
[1759423989989,57.22451009,228.02,227.92,3.9462]
[1759423990792,3.9447,228.01,227.93,3.9459]
[1759423990982,57.19165285,228.02,227.93,3.9459]
[1759423991488,0.02865637,227.99,227.93,3.9459]
[1759423992084,0.02865637,227.99,227.93,1.83165285]
[1759423992285,0.02865637,227.99,227.96,1.83165285]
[1759423992484,0.02865637,227.99,227.97,7.11]
[1759423992686,0.02865637,227.99,227.98,7.11]
[1759423993083,30.26,228.09,227.98,7.11]
[1759423993287,30.26,228.09,228.01,7.11]
[1759423994087,5.77475285,228.1,228.01,7.11]
[1759423994088,3.9431,228.1,228.01,7.11]
[1759423994284,109.48,228.11,228.03,1.83165285]
[1759423994484,113.4231,228.11,228.04,7.11]
[1759423996292,3.9432,228.1,228.04,7.11]
[1759423996700,3.9434,228.09,228.04,7.11]
[1759423996989,3.9434,228.09,228.03,0.03172461]
[1759423997191,3.9434,228.09,228.03,7.14172461]
[1759423998485,3.9436,228.08,228.03,7.14172461]
[1759423998895,1.83165285,228.09,228.04,7.11]
[1759423999091,109.46,228.08,228.03,0.03172461]
[1759423999291,1.83165285,228.09,228.03,0.03172461]
[1759423999697,109.46,228.1,228.04,7.11]
[1759424000086,3.9426,228.13,228.06,7.11]
[1759424000293,113.4026,228.13,228.06,7.11]
[1759424000595,109.46,228.13,228.06,7.11]
[1759424000797,111.29165285,228.13,228.06,7.11]
[1759424000991,111.29165285,228.13,228.03,1.83165285]
[1759424001294,111.29165285,228.13,228.02,8.94165285]
[1759424001493,111.29165285,228.13,228.07,0.02864185]
[1759424001694,109.44,228.12,228.07,0.02864185]
[1759424001997,109.44,228.12,228.08,7.11]
[1759424003093,319.1,228.17,228.1,3.9429]
[1759424003299,428.54,228.17,228.11,7.11]
[1759424003698,319.1,228.17,228.11,7.11]
[1759424003898,319.1,228.17,228.11,11.0528]
[1759424004697,319.1,228.17,228.13,7.51]
[1759424005098,428.54,228.17,228.13,7.51]
[1759424005596,319.1,228.17,228.13,7.51]
[1759424005804,428.52,228.17,228.13,7.51]
[1759424006405,428.52,228.17,228.12,0.03174441]
[1759424006699,319.1,228.17,228.12,0.03174441]
[1759424006904,319.1,228.17,228.13,7.51]
[1759424007507,428.52,228.17,228.13,7.51]
[1759424007705,428.52,228.17,228.12,0.03174441]
[1759424009103,432.462,228.17,228.12,0.03174441]
[1759424009307,428.52,228.17,228.12,0.03174441]
[1759424010611,3.9422,228.15,228.12,0.03174441]